bitfinex/quotes_SOLUSD_20251006
["timestamp","ask_amount","ask_price","bid_price","bid_amount"]
[1759780772468,10.61841658,235.44,235.37,30.54]
[1759780773876,21.23593119,235.45,235.37,31.21]
[1759780774469,21.23593119,235.45,235.38,30.52]
[1759780775288,21.23593119,235.45,235.39,30.52]
[1759780775468,21.23593119,235.45,235.4,8.89515097]
[1759780778199,21.23593119,235.45,235.4,9.59515097]
[1759780778374,21.23593119,235.45,235.4,8.89515097]
[1759780778870,21.23593119,235.45,235.4,9.59515097]
[1759780779068,21.23593119,235.45,235.41,0.7]
[1759780779303,21.23593119,235.45,235.4,8.89515097]
[1759780779488,21.23593119,235.45,235.4,9.59515097]
[1759780779683,21.23593119,235.45,235.41,33.1]
[1759780780980,21.23593119,235.45,235.42,30.5]
[1759780781793,21.26233119,235.45,235.42,30.5]
[1759780782097,0.0264,235.45,235.43,0.7]
[1759780782404,0.0264,235.45,235.44,30.48]
[1759780783085,0.0264,235.45,235.41,33.1]
[1759780783293,0.0264,235.45,235.42,30.48]
[1759780784002,0.0264,235.45,235.43,30.5]
[1759780784187,0.0264,235.45,235.4,1.93896167]
[1759780785278,0.0264,235.45,235.36,13.45049408]
[1759780785692,0.0264,235.45,235.38,1.93896167]
[1759780786209,1.93896167,235.42,235.33,33.8]
[1759780786509,20.8264,235.45,235.33,33.8]
[1759780786510,36.10721718,235.41,235.37,1.93896167]
[1759780786804,14.86767766,235.41,235.37,1.93896167]
[1759780787180,14.86767766,235.41,235.36,1.93896167]
[1759780787380,16.80663933,235.41,235.34,1.93896167]
[1759780787591,16.80663933,235.41,235.33,33.8]
[1759780787592,36.10721718,235.41,235.35,1.93896167]
[1759780787799,36.10721718,235.41,235.36,1.93896167]
[1759780788099,36.10721718,235.41,235.38,1.93896167]
[1759780788501,21.23953952,235.41,235.36,1.93896167]
[1759780788798,21.23953952,235.41,235.35,1.93896167]
[1759780789001,21.23953952,235.41,235.36,32.39896167]
[1759780789203,21.23953952,235.41,235.37,1.93896167]
[1759780789784,21.23953952,235.41,235.36,32.39896167]
[1759780790096,21.23953952,235.41,235.36,33.09896167]
[1759780790497,21.23953952,235.41,235.36,30.46]
[1759780790705,1.93896167,235.4,235.34,0.7]
[1759780791014,1.93896167,235.4,235.34,1.93896167]
[1759780792214,36.11028505,235.39,235.33,33.8]
[1759780792389,36.11028505,235.39,235.34,32.37896167]
[1759780793206,36.11028505,235.39,235.35,30.44]
[1759780793411,36.11028505,235.39,235.35,32.37896167]
[1759780793616,36.11028505,235.39,235.35,30.44]
[1759780794004,31.86201622,235.39,235.33,33.8]
[1759780794317,31.86201622,235.39,235.33,33.1]
[1759780794613,33.80097789,235.39,235.33,33.1]
[1759780795412,31.86201622,235.39,235.35,1.93896167]
[1759780795593,31.86201622,235.39,235.36,30.44]
[1759780795794,31.86201622,235.39,235.35,2.63896167]
[1759780795997,31.86201622,235.39,235.36,2.63896167]
[1759780796212,31.86201622,235.39,235.34,0.7]
[1759780796517,1.93896167,235.38,235.33,33.1]
[1759780796818,1.93896167,235.38,235.33,33.8]
[1759780797018,1.93896167,235.38,235.33,33.1]
[1759780797519,1.93896167,235.38,235.16,2.21617205]
[1759780797520,22.73896167,235.36,235.29,0.7]
[1759780797716,22.73896167,235.36,235.25,33.12]
[1759780797717,20.8,235.36,235.25,33.12]
[1759780797891,1.93896167,235.35,235.29,1.93896167]
[1759780798198,1.93896167,235.35,235.31,1.93896167]
[1759780798199,14.87209993,235.34,235.31,1.93896167]
[1759780798716,14.87209993,235.34,235.32,1.93896167]
[1759780798899,14.87209993,235.34,235.33,1.93896167]
[1759780799613,14.87209993,235.34,235.33,32.37896167]
[1759780799803,14.89729993,235.34,235.33,31.14]
[1759780800003,14.89729993,235.34,235.33,33.07896167]
[1759780800191,0.0252,235.34,235.33,33.07896167]
[1759780801602,14.8689409,235.39,235.33,33.07896167]
[1759780801804,12.75320424,235.52,235.33,33.07896167]
[1759780801805,4.24646481,235.49,235.38,1.93896167]
[1759780801997,14.86262685,235.49,235.39,31.14]
[1759780802198,10.61616204,235.49,235.45,1.93896167]
[1759780802396,10.61616204,235.49,235.46,30.48]
[1759780802996,31.84887895,235.49,235.36,20.8]
[1759780803209,0.72,235.48,235.43,1.93896167]
[1759780803520,0.72,235.47,235.4,0.7]
[1759780803702,2.65896167,235.47,235.4,0.7]
[1759780803905,2.65896167,235.47,235.41,1.93896167]
[1759780804307,1.93896167,235.45,235.39,1.93896167]
[1759780804512,1.93896167,235.45,235.38,1.93896167]
[1759780804717,1.93896167,235.44,235.38,1.93896167]
[1759780804937,1.93896167,235.41,235.33,12.74832678]
[1759780805225,1.93896167,235.41,235.23,12.24929946]
[1759780805226,2.65896167,235.41,235.23,12.24929946]
[1759780805405,1.93896167,235.37,235.3,1.93896167]
[1759780805822,2.65896167,235.38,235.31,1.93896167]
[1759780806030,20.8,235.43,235.33,1.93896167]
[1759780806329,14.86767766,235.41,235.3,6.53548988]
[1759780806512,0.72,235.4,235.34,1.93896167]
[1759780807026,0.72,235.4,235.35,30.5]
[1759780807210,0.72,235.39,235.35,30.5]
[1759780807524,0.72,235.39,235.33,1.93896167]
[1759780808127,0.72,235.39,235.32,2.63896167]
[1759780808325,14.86957259,235.38,235.32,2.63896167]
[1759780808632,14.86957259,235.38,235.33,1.93896167]
[1759780808810,14.86957259,235.38,235.34,2.63896167]
[1759780809015,14.86957259,235.38,235.35,2.63896167]
[1759780809323,14.86957259,235.38,235.36,0.7]
[1759780809526,14.86957259,235.38,235.35,1.93896167]
[1759780809731,14.86957259,235.38,235.36,30.48]
[1759780810024,14.86957259,235.38,235.33,1.93896167]
[1759780810323,14.86957259,235.38,235.33,2.63896167]
[1759780810503,10.62112328,235.38,235.33,2.63896167]
[1759780811427,10.62112328,235.38,235.26,31.67647521]
[1759780811617,10.62112328,235.38,235.34,1.93896167]
[1759780811809,10.62112328,235.38,235.34,0.7]
[1759780812008,10.62112328,235.38,235.34,2.63896167]
[1759780812210,10.62112328,235.38,235.35,0.7]
[1759780812414,10.62112328,235.38,235.36,30.46]
[1759780812415,10.81012328,235.38,235.36,30.46]
[1759780813235,10.81012328,235.38,235.29,0.7]
[1759780813236,0.72,235.37,235.29,0.7]
[1759780813432,20.8,235.35,235.3,30.44]
[1759780813623,21.52,235.35,235.3,30.44]
[1759780814133,14.87209993,235.34,235.3,30.44]
[1759780814512,14.87209993,235.34,235.31,0.7]
[1759780814712,14.87209993,235.34,235.32,0.7]
[1759780814921,14.87209993,235.34,235.3,32.37896167]
[1759780815126,14.87209993,235.34,235.3,30.44]
[1759780815306,14.87209993,235.34,235.31,1.93896167]
[1759780815504,14.87209993,235.34,235.32,1.93896167]
[1759780816515,14.87020435,235.37,235.33,0.7]
[1759780816835,14.87020435,235.37,235.36,1.93896167]
[1759780817037,14.87020435,235.37,235.36,30.46]
[1759780817535,14.87020435,235.37,235.35,1.93896167]
[1759780817736,14.87020435,235.37,235.32,0.7]
[1759780818039,14.87020435,235.37,235.34,1.93896167]
[1759780818335,0.66,235.36,235.29,0.69]
[1759780818540,14.87146802,235.35,235.31,1.93896167]
[1759780818742,15.53146802,235.35,235.31,1.93896167]
[1759780819625,14.87146802,235.35,235.31,1.93896167]
[1759780819941,15.53146802,235.35,235.31,1.93896167]
[1759780821139,0.66,235.34,235.25,33.81]
[1759780821338,0.66,235.34,235.3,1.93896167]
[1759780821538,14.87336392,235.32,235.25,33.81]
[1759780821841,14.87336392,235.32,235.29,1.93896167]
[1759780822013,15.53336392,235.32,235.29,1.93896167]
[1759780822211,36.12102667,235.32,235.29,1.93896167]
[1759780822737,36.12102667,235.32,235.28,1.93896167]
[1759780822934,36.78102667,235.32,235.28,1.93896167]
[1759780823132,0.66,235.31,235.28,1.93896167]
[1759780823824,14.87462813,235.3,235.25,33.12]
[1759780824012,14.87462813,235.3,235.26,0.69]
[1759780824218,14.87462813,235.3,235.29,1.93896167]
[1759780825323,14.87462813,235.3,235.27,1.93896167]
[1759780825532,14.87462813,235.3,235.28,1.93896167]
[1759780825747,10.62473438,235.3,235.27,0.69]
[1759780825938,10.62473438,235.3,235.28,1.93896167]
[1759780826341,10.62473438,235.3,235.29,30.4]
[1759780827536,0.66,235.3,235.27,1.93896167]
[1759780827833,21.90766275,235.32,235.27,1.93896167]
[1759780828029,0.66,235.31,235.25,33.12]
[1759780828234,0.66,235.3,235.25,33.12]
[1759780828445,0.66,235.29,235.25,33.12]
[1759780829842,36.78716761,235.28,235.22,1.93896167]
[1759780830019,36.78716761,235.28,235.23,30.36]
[1759780830222,36.78716761,235.28,235.23,31.05]
[1759780830439,36.12716761,235.28,235.22,1.93896167]
[1759780830636,36.78716761,235.28,235.23,30.36]
[1759780831725,14.87715717,235.26,235.23,30.36]
[1759780832843,14.87715717,235.26,235.23,32.98896167]
[1759780833022,14.87715717,235.26,235.23,30.36]
[1759780833952,10.62654084,235.26,235.23,30.36]
[1759780835647,10.62654084,235.26,235.24,30.34]
[1759780838542,10.62654084,235.26,235.22,0.67]
[1759780839260,10.62654084,235.26,235.19,33.12]
[1759780839485,10.62654084,235.26,235.23,0.67]
[1759780839795,10.62654084,235.26,235.24,0.67]
[1759780839965,10.62654084,235.26,235.25,30.3]
[1759780840474,10.62654084,235.26,235.21,0.67]
[1759780840660,10.62654084,235.26,235.22,0.67]
[1759780840861,10.62654084,235.26,235.23,0.67]
[1759780841382,10.62654084,235.26,235.19,33.12]
[1759780841767,10.62654084,235.26,235.23,0.67]
[1759780841970,10.62654084,235.26,235.24,30.95]
[1759780842280,10.62654084,235.26,235.25,0.67]
[1759780844162,36.11988886,235.33,235.25,0.67]
[1759780844871,0.72,235.32,235.25,0.67]
[1759780845273,14.873996,235.31,235.25,0.67]
[1759780846378,0.72,235.3,235.24,30.28]
[1759780846889,36.12256172,235.31,235.25,0.67]
[1759780847470,0.189,235.3,235.25,0.67]
[1759780847684,0.189,235.3,235.26,0.67]
[1759780848286,0.189,235.3,235.24,30.28]
[1759780848287,4.25007437,235.29,235.27,0.7]
[1759780848590,14.87526031,235.29,235.28,0.7]
[1759780849458,14.87526031,235.29,235.24,30.28]
[1759780849663,14.87526031,235.29,235.25,0.7]
[1759780850401,4.25007437,235.29,235.25,0.7]
[1759780851191,14.87526031,235.29,235.25,0.7]
[1759780851686,15.54526031,235.29,235.19,45.87591555]
[1759780851886,0.67,235.28,235.2,30.96]
[1759780852066,0.67,235.28,235.21,0.7]
[1759780852478,14.87652483,235.27,235.21,0.7]
[1759780854477,10.62608917,235.27,235.21,0.7]
[1759780856576,14.87652483,235.27,235.21,0.7]
[1759780857993,4.2501843,235.29,235.22,10.87647521]
[1759780858296,4.2501843,235.29,235.23,0.7]
[1759780858485,4.2501843,235.29,235.24,30.26]
[1759780858696,0.189,235.3,235.25,11.57647521]
[1759780858895,0.189,235.3,235.26,0.7]
[1759780859392,4.43899184,235.3,235.27,0.7]
[1759780859575,4.24999184,235.3,235.28,30.96]
[1759780860293,0.67,235.29,235.25,20.8]
[1759780860490,0.67,235.29,235.26,30.26]
[1759780860674,4.25025501,235.28,235.26,30.26]
[1759780860997,14.87589254,235.28,235.27,30.26]
[1759780861385,9.26872554,235.28,235.27,30.26]
[1759780861579,0.67,235.31,235.27,30.26]
[1759780861772,21.2466385,235.34,235.27,30.26]
[1759780861972,0.67,235.3,235.22,21.5]
[1759780862194,3.03427692,235.31,235.19,33.12]
[1759780862399,0.67,235.29,235.2,30.96]
[1759780862576,14.87589254,235.28,235.21,0.7]
[1759780862776,14.87589254,235.28,235.23,20.8]
[1759780862991,14.87589254,235.28,235.24,30.96]
[1759780863284,4.25025501,235.28,235.25,0.7]
[1759780863470,4.25025501,235.28,235.26,0.7]
[1759780864285,4.25025501,235.28,235.24,30.26]
[1759780864286,4.25025501,235.28,235.24,30.96]
[1759780864584,4.25025501,235.28,235.25,0.7]
[1759780865094,14.87462813,235.3,235.25,0.7]
[1759780865713,0.67,235.29,235.24,30.26]
[1759780865904,0.67,235.28,235.24,30.26]
[1759780866074,0.67,235.28,235.23,21.5]
[1759780866276,0.67,235.27,235.2,7.23548988]
[1759780866472,0.67,235.26,235.21,30.26]
[1759780866675,0.67,235.26,235.21,30.96]
[1759780867104,4.25079702,235.25,235.21,30.96]
[1759780867484,14.87778958,235.25,235.21,30.96]
[1759780867682,0.67,235.24,235.19,33.12]
[1759780867875,14.87778958,235.25,235.14,6.53548988]
[1759780867876,0.67,235.23,235.15,10.87647521]
[1759780868206,14.87778958,235.25,235.19,0.7]
[1759780868207,15.54778958,235.25,235.19,0.7]
[1759780868507,3.15413835,235.24,235.2,30.26]
[1759780868911,3.15413835,235.24,235.23,20.8]
[1759780869082,78.7,235.53,235.23,20.8]
[1759780869083,4.24736663,235.44,235.33,20.8]
[1759780869281,0.67,235.43,235.37,20.8]
[1759780869493,0.67,235.43,235.38,33.12]
[1759780869690,0.67,235.42,235.38,63.6]
[1759780870009,0.67,235.41,235.38,63.6]
[1759780870198,0.67,235.4,235.39,30.48]
[1759780870396,0.67,235.4,235.38,33.12]
[1759780870607,0.67,235.39,235.38,33.12]
[1759780870997,0.67,235.39,235.38,63.6]
[1759780871312,4.91826883,235.39,235.38,63.6]
[1759780874717,4.91826883,235.39,235.38,33.12]
[1759780875016,0.67,235.49,235.39,10.87647521]
[1759780875215,14.86325802,235.48,235.39,10.87647521]
[1759780879500,15.52325802,235.48,235.39,10.87647521]
[1759780880800,0.66,235.47,235.39,10.87647521]
[1759780881612,4.24700586,235.46,235.39,23.62155242]
[1759780883230,14.86416734,235.47,235.39,23.62155242]
[1759780883430,4.24682549,235.47,235.42,20.8]
[1759780883602,4.24682549,235.47,235.43,30.38]
[1759780884839,11.27583821,235.5,235.44,10.87647521]
[1759780885039,4.24646481,235.49,235.44,10.87647521]
[1759780885544,4.24592391,235.52,235.44,10.87647521]
[1759780885743,4.90592391,235.52,235.44,10.87647521]
[1759780886054,0.66,235.51,235.44,10.87647521]
[1759780887150,4.2462845,235.5,235.44,10.87647521]
[1759780888260,4.9062845,235.5,235.44,10.87647521]
[1759780888849,15.52199575,235.5,235.44,10.87647521]
[1759780893949,0.1,235.53,235.48,10.87647521]
[1759780894142,0.1,235.53,235.5,2.2]
[1759780894744,4.34585228,235.53,235.5,2.2]
[1759780895553,0.1,235.53,235.5,2.2]
[1759780895932,0.1,235.53,235.51,10.87647521]
[1759780896136,0.1,235.53,235.52,41.13647521]
[1759780897645,11.81977804,236.11,235.57,10.87647521]
[1759780897646,0.71,235.64,235.57,10.87647521]
[1759780897843,4.95392975,235.64,235.59,10.87647521]
[1759780898636,4.95392975,235.64,235.58,35.21392975]
[1759780898637,4.24392975,235.64,235.6,43.97647521]
[1759780899447,4.24404183,235.63,235.6,43.97647521]
[1759780899662,0.81,235.65,235.6,43.97647521]
[1759780899971,4.2441548,235.62,235.6,43.97647521]
[1759780900365,4.34430202,235.61,235.6,43.97647521]
[1759780900967,5.05430202,235.61,235.6,33.1]
[1759780901570,5.05430202,235.61,235.6,63.36]
[1759780901883,15.66505708,235.61,235.54,43.95647521]
[1759780902184,0.71,235.6,235.54,43.95647521]
[1759780902376,0.71,235.59,235.54,43.95647521]
[1759780902577,0.71,235.58,235.54,43.95647521]
[1759780902971,0.71,235.57,235.55,30.26]
[1759780903571,4.24466233,235.59,235.55,30.26]
[1759780903759,0.71,235.58,235.55,30.26]
[1759780903965,0.71,235.57,235.55,30.26]
[1759780905085,10.61165584,235.59,235.55,30.26]
[1759780905279,11.32165584,235.59,235.55,30.26]
[1759780905593,4.24448217,235.6,235.59,31.67647521]
[1759780905883,4.24448217,235.6,235.59,61.89647521]
[1759780906260,4.24448217,235.6,235.59,72.50681515]
[1759780909383,4.24448217,235.6,235.59,51.02]
[1759780909683,15.5656876,235.6,235.59,30.22]
[1759780910072,15.5656876,235.6,235.54,33.08]
[1759780910273,0.71,235.59,235.54,33.08]
[1759780910469,0.71,235.58,235.54,33.08]
[1759780910881,0.71,235.57,235.54,33.08]
[1759780911065,0.71,235.56,235.54,33.08]
[1759780911268,21.32191473,235.61,235.54,33.08]
[1759780911269,4.95538314,235.55,235.54,33.08]
[1759780911588,4.95538314,235.55,235.54,63.3]
[1759780913684,15.568841,235.55,235.48,10.87647521]
[1759780913886,0.71,235.54,235.47,10.87647521]
[1759780914090,0.71,235.53,235.47,10.87647521]
[1759780914267,0.71,235.52,235.47,10.87647521]
[1759780914469,0.71,235.51,235.47,10.87647521]
[1759780914683,14.858841,235.55,235.48,30.22]
[1759780914888,14.86010274,235.53,235.48,30.22]
[1759780915083,0.71,235.52,235.48,30.22]
[1759780915287,0.71,235.51,235.48,30.22]
[1759780915588,0.71,235.5,235.48,30.22]
[1759780915962,4.24646481,235.49,235.48,30.22]
[1759780916286,4.24592391,235.52,235.49,10.87647521]
[1759780916459,4.24592391,235.52,235.51,10.87647521]
[1759780916982,4.24592391,235.52,235.5,30.22]
[1759780916983,4.95592391,235.52,235.5,30.22]
[1759780918586,0.71,235.51,235.5,30.22]
[1759780920191,4.24610419,235.51,235.5,30.22]
[1759780921688,4.95610419,235.51,235.5,30.22]
[1759780922190,4.24610419,235.51,235.5,30.22]
[1759780922389,14.86010274,235.53,235.5,30.22]
[1759780922795,15.57010274,235.53,235.5,30.22]
[1759780923294,0.71,235.52,235.5,30.22]
[1759780924488,4.24610419,235.51,235.5,30.22]
[1759780926498,10.6143591,235.53,235.5,30.22]
[1759780927102,0.71,235.52,235.5,30.22]
[1759780927416,0.71,235.51,235.5,30.22]
[1759780928405,20.8,235.55,235.5,30.22]
[1759780928604,0.71,235.55,235.51,10.87647521]
[1759780928806,0.71,235.55,235.52,30.22]
[1759780929188,0.71,235.54,235.52,30.22]
[1759780929708,0.71,235.53,235.52,30.22]
[1759780930495,4.95574364,235.53,235.52,30.22]
[1759780936715,25.75574364,235.53,235.52,30.22]
[1759780938014,25.04574364,235.53,235.52,30.22]
[1759780938620,4.24574364,235.53,235.52,30.22]
[1759780939205,4.24556338,235.54,235.52,30.22]
[1759780941696,14.85631817,235.59,235.52,30.22]
[1759780941897,0.72,235.58,235.52,30.22]
[1759780942199,0.72,235.57,235.52,30.22]
[1759780942409,4.24466233,235.59,235.52,30.22]
[1759780942601,4.24466233,235.59,235.56,20.8]
[1759780942800,4.24466233,235.59,235.57,30.22]
[1759780943197,4.34435978,235.61,235.57,30.22]
[1759780943609,5.06435978,235.61,235.57,30.22]
[1759780943923,15.67511484,235.61,235.57,30.22]
[1759780944716,14.95511484,235.61,235.57,30.22]
[1759780945430,4.34435978,235.61,235.57,30.22]
[1759780946510,0.1,235.61,235.57,30.22]
[1759780946734,0.1,235.61,235.6,20.8]
[1759780946928,0.1,235.61,235.6,61.89647521]
[1759780949533,0.1,235.65,235.6,61.89647521]
[1759780950526,0.72,235.64,235.6,51.02]
[1759780951634,4.3436022,235.65,235.6,51.02]
[1759780951940,0.72,235.64,235.6,51.02]
[1759780952618,4.3436022,235.65,235.61,10.87647521]
[1759780953844,0.72,235.64,235.61,20.8]
[1759780954012,4.3436022,235.65,235.62,30.2]
[1759780955714,4.3436022,235.65,235.63,10.87647521]
[1759780956516,0.1,235.65,235.63,10.87647521]
[1759780957424,4.34358277,235.65,235.63,10.87647521]
[1759780958243,4.34358277,235.65,235.64,30.2]
[1759780958841,0.1,235.65,235.64,41.07647521]
[1759780959020,0.1,235.65,235.64,51.68428177]
[1759780959818,10.7065386,235.71,235.67,20.8]
[1759780959819,0.1,235.71,235.67,20.8]
[1759780960040,0.1,235.71,235.69,10.87647521]
[1759780960245,0.1,235.71,235.7,41.07647521]
[1759780960442,0.1,235.71,235.7,52.39129025]
[1759780961320,0.1,235.71,235.7,34.44058971]
[1759780961636,0.1,235.71,235.7,85.44058971]
[1759780965726,4.34250137,235.71,235.7,85.44058971]
[1759780965933,4.34250137,235.71,235.7,73.19129025]
[1759780966138,5.05250137,235.71,235.7,73.19129025]
[1759780968149,5.05250137,235.71,235.7,62.31481504]
[1759780968350,5.05250137,235.71,235.7,20.8]
[1759780968537,0.81,235.71,235.7,50.98]
[1759780968736,5.05250137,235.71,235.7,50.98]
[1759780969127,4.34250137,235.71,235.7,50.98]
[1759780969330,0.1,235.71,235.7,50.98]
[1759780969530,0.1,235.71,235.7,61.85647521]
[1759780970334,0.1,235.71,235.7,66.09897299]
[1759780972129,0.1,235.71,235.7,72.2357962]
[1759780972747,4.24175133,235.76,235.71,10.87647521]
[1759780972950,0.72,235.75,235.72,30.18]
[1759780973143,0.72,235.74,235.72,30.18]
[1759780974249,4.96175133,235.76,235.72,30.18]
[1759780974655,4.24175133,235.76,235.73,10.87647521]
[1759780974861,4.24175133,235.76,235.74,30.18]
[1759780975057,4.2414363,235.77,235.75,30.18]
[1759780975558,4.9614363,235.77,235.75,30.18]
[1759780978971,4.9614363,235.77,235.75,40.78242851]
[1759780979166,4.9614363,235.77,235.75,30.18]
[1759780979366,4.9614363,235.77,235.75,40.78242851]
[1759780980264,10.60242851,235.8,235.75,40.78242851]
[1759780980265,4.24106196,235.79,235.76,10.87647521]
[1759780980563,4.96106196,235.79,235.77,30.18]
[1759780981473,10.60113371,235.83,235.77,30.18]
[1759780981474,0.82,235.81,235.78,10.87647521]
[1759780981686,0.72,235.8,235.79,30.18]
[1759780982171,4.34071613,235.81,235.79,30.18]
[1759780982372,5.06071613,235.81,235.79,30.18]
[1759780982770,0.82,235.81,235.79,30.18]
[1759780982973,0.82,235.81,235.79,40.78113371]
[1759780983470,5.06072238,235.81,235.79,40.78113371]
[1759780983768,4.34072238,235.81,235.79,40.78113371]
[1759780984449,0.1,235.81,235.8,10.87647521]
[1759780987372,0.1,235.81,235.8,41.03647521]
[1759780989166,0.1,235.81,235.8,10.87647521]
[1759780989366,0.1,235.81,235.8,41.03647521]
[1759780990174,0.1,235.81,235.8,10.87647521]
[1759780990378,0.1,235.81,235.8,41.03647521]
[1759780990876,4.34070226,235.81,235.8,41.03647521]
[1759780991069,5.06070226,235.81,235.8,41.03647521]
[1759780991274,5.06070226,235.81,235.8,10.87647521]
[1759780991484,5.06070226,235.81,235.8,41.03647521]
[1759780992076,5.06070226,235.81,235.8,10.87647521]
[1759780992270,5.06070226,235.81,235.8,41.03647521]
[1759780992473,5.06070226,235.81,235.79,20.8]
[1759780992671,4.34070226,235.81,235.8,30.16]
[1759780992881,14.94245791,235.81,235.78,10.60062888]
[1759780993065,14.94245791,235.81,235.79,50.96]
[1759780993401,14.94245791,235.81,235.8,30.16]
[1759780993768,15.66245791,235.81,235.8,30.16]
[1759780993966,15.66245791,235.81,235.8,41.03647521]
[1759780993967,0.1,235.81,235.8,41.03647521]
[1759780994163,0.1,235.85,235.83,20.8]
[1759780994365,0.1,235.85,235.84,30.16]
[1759780994580,4.33998304,235.85,235.84,30.16]
[1759780995084,5.05998304,235.85,235.84,30.16]
[1759780996176,5.05998304,235.85,235.83,25.03945125]
[1759780996481,4.33998304,235.85,235.84,30.16]
[1759780997385,5.05998304,235.85,235.84,30.16]
[1759780999190,5.05998304,235.85,235.83,53.84]
[1759780999191,5.05998304,235.85,235.83,33.04]
[1759780999374,0.67,235.84,235.83,33.04]
[1759780999687,0.67,235.84,235.83,63.2]
[1759781000486,4.91016282,235.84,235.83,33.04]
[1759781000676,4.91016282,235.84,235.83,63.18]
[1759781000871,4.24016282,235.84,235.83,63.18]
[1759781001389,4.91016282,235.84,235.83,63.18]
[1759781001586,4.24016282,235.84,235.83,63.18]
[1759781002286,4.91016282,235.84,235.83,63.18]
[1759781002986,4.24016282,235.84,235.83,63.18]
[1759781004295,4.24016282,235.84,235.83,33.04]
[1759781004595,4.24016282,235.84,235.83,63.18]
[1759781006676,4.24016282,235.84,235.83,67.42016282]
[1759781007276,4.33999499,235.85,235.83,67.42016282]
[1759781007869,5.00999499,235.85,235.83,67.42016282]
[1759781008399,5.00999499,235.85,235.84,30.14]
[1759781008774,5.00999499,235.85,235.83,33.04]
[1759781008975,4.33999499,235.85,235.84,30.14]
[1759781009570,5.00999499,235.85,235.84,30.14]
[1759781009797,4.33999499,235.85,235.84,30.14]
[1759781009995,5.00999499,235.85,235.84,30.14]
[1759781011186,5.00999499,235.85,235.83,33.04]
[1759781011391,4.33999499,235.85,235.84,30.14]
[1759781011988,5.00999499,235.85,235.84,30.14]
[1759781013989,5.00999499,235.85,235.83,33.04]
[1759781014197,4.33999499,235.85,235.83,33.04]
[1759781014587,4.33999499,235.85,235.84,30.14]
[1759781015402,5.00999499,235.85,235.84,30.14]
[1759781017281,4.33999499,235.85,235.84,41.01647521]
[1759781017704,4.33999499,235.85,235.84,53.73831224]
[1759781017885,4.33999499,235.85,235.84,30.14]
[1759781018204,5.01999499,235.85,235.84,30.14]
[1759781018581,5.01999499,235.85,235.83,33.04]
[1759781018785,5.01999499,235.85,235.84,30.14]
[1759781018985,5.01999499,235.85,235.83,33.04]
[1759781019186,5.01999499,235.85,235.84,30.14]
[1759781021001,5.01999499,235.85,235.83,33.04]
[1759781021200,5.01999499,235.85,235.84,30.14]
[1759781021407,0.1,235.85,235.84,30.14]
[1759781021689,4.33998304,235.85,235.84,30.14]
[1759781022504,5.01998304,235.85,235.84,30.14]
[1759781024687,5.01998304,235.85,235.83,33.04]
[1759781024895,4.33998304,235.85,235.84,30.12]
[1759781025418,5.01998304,235.85,235.84,30.12]
[1759781025917,4.33998304,235.85,235.84,30.12]
[1759781026499,4.33998304,235.85,235.84,40.7196385]
[1759781026993,5.01998304,235.85,235.84,30.12]
[1759781028127,4.33998304,235.85,235.84,30.12]
[1759781028618,4.33998304,235.85,235.84,42.84291609]
[1759781029422,0.1,235.85,235.84,42.84291609]
[1759781030327,4.33998304,235.85,235.84,42.84291609]
[1759781031104,21.29127353,235.95,235.88,10.87647521]
[1759781031105,0.1,235.95,235.88,10.87647521]
[1759781031303,0.72,235.94,235.89,30.12]
[1759781031502,0.72,235.93,235.9,30.12]
[1759781031800,0.72,235.92,235.9,31.81595726]
[1759781032224,0.72,235.92,235.9,30.12]
[1759781032538,0.72,235.92,235.9,42.83967946]
[1759781032702,0.72,235.94,235.9,42.83967946]